fUST/lending_fUST_20250724
["ID","MTS","AMOUNT","RATE_DAILY","PERIOD"]
[374456600,1753307446007,-460.0,0.00022392,2]
[374456602,1753307446017,-1785.694,0.00022431,2]
[374456604,1753307446027,-821.7,0.00022464,2]
[374456606,1753307446037,-460.0,0.00022464,2]
[374456608,1753307446046,-701.61,0.00022465,2]
[374456610,1753307446055,-493.73,0.00022465,2]
[374456612,1753307446064,-839.97,0.00022465,2]
[374456614,1753307446073,-923.54232567,0.00022465,2]
[374456625,1753307446172,-140.63767433,0.00022465,2]
[374456628,1753307446182,-564.39,0.00022465,2]
[374456631,1753307446191,-2211.53,0.00022465,2]
[374456634,1753307446201,-811.85,0.00022465,2]
[374456636,1753307446210,-614.85,0.00022465,2]
[374456638,1753307446219,-1892.75,0.00022465,2]
[374456640,1753307446228,-25299.49824153,0.0002249,7]
[374456642,1753307446241,-1043.16872469,0.0002249,7]
[374456645,1753307446252,-10000.01268,0.0002249,7]
[374456647,1753307446263,-783.8139614,0.0002249,7]
[374456649,1753307446275,-1316.41074607,0.0002249,7]
[374456654,1753307446322,-267.09860424,0.00019652,2]
[374456657,1753307446334,-192.90139576,0.00019652,2]
[374456659,1753307446343,-393.58354711,0.0002249,7]
[374456661,1753307446355,-2838.42646983,0.0002249,7]
[374456663,1753307446366,-515.0,0.0002249,7]
[374456678,1753307446513,-460.0,0.00019926,2]
[374456680,1753307446523,-460.0,0.000202,2]
[374456681,1753307446531,-91.30814909,0.00020474,2]
[374456684,1753307446543,-368.69185091,0.00020474,2]
[374456686,1753307446552,-80658.77438777,0.0002249,7]
[374456697,1753307446649,-21264.61130686,0.0002249,7]
[374456700,1753307446663,-8480.88494321,0.0002249,7]
[374456702,1753307446675,-3594.34172125,0.0002249,7]
[374456704,1753307446687,-21311.97574769,0.0002249,7]
[374456706,1753307446696,-270.494442,0.0002249,7]
[374456708,1753307446705,-321.875242,0.0002249,7]
[374456710,1753307446714,-151.0,0.0002249,7]
[374456712,1753307446724,-321.875242,0.0002249,7]
[374456714,1753307446733,-151.0,0.0002249,7]
[374456715,1753307446742,-151.0,0.000225,7]
[374456717,1753307446751,-50990.7576142,0.000225,2]
[374456740,1753307446961,-460.0,0.00019178,2]
[374456742,1753307446970,-142.26,0.00019452,2]
[374456748,1753307447018,150.0,0.00021303,30]
[374456765,1753307447171,-458.5,0.00019178,2]
[374456768,1753307447182,-1.5,0.00019178,2]
[374456771,1753307447191,-317.74,0.00019452,2]
[374456774,1753307447201,-460.0,0.00019452,2]
[374456777,1753307447211,-460.0,0.00019726,2]
[374456780,1753307447220,-460.0,0.00019726,2]
[374456783,1753307447229,-460.0,0.0002,2]
[374456786,1753307447238,-402.42,0.0002,2]
[374456789,1753307447247,-186.5,0.00020273,2]
[374456792,1753307447257,-345.07,0.00020748,2]
[374456794,1753307447266,-1819.629512,0.000225,2]
[374456797,1753307447277,-9129.34381868,0.000225,2]
[374456801,1753307447288,-13720.37933186,0.000225,2]
[374457940,1753307874397,-190.163629,0.00018208,2]
[374457941,1753307948723,-168.0,0.00018208,2]
[374457942,1753307952701,-202.1037553,0.00018208,2]
[374457943,1753307958279,-191.13294555,0.00018208,2]
[374457944,1753307960561,-150.12708315,0.00018208,2]
[374457945,1753307978240,-189.06104593,0.00018977,2]
[374457946,1753307978261,-300.0,0.00019076,2]
[374457947,1753307978281,-300.0,0.00019077,2]
[374457948,1753307978301,-300.0,0.00019077,2]
[374457949,1753307978321,-300.0,0.00019077,2]
[374457950,1753307978340,-1200.0,0.00019077,2]
[374457951,1753307978360,-1200.0,0.00019077,2]
[374457952,1753307978381,-5661.93895407,0.00019078,2]
[374457954,1753308188059,226.393616,0.00013699,2]
[374457956,1753308299322,150.0,0.00021987,30]
[374457957,1753308338121,-850.47466021,0.00018711,2]
[374457958,1753308338142,-285.84200676,0.00019061,2]
[374457959,1753308338163,-300.0,0.00019075,2]
[374457960,1753308338186,-300.0,0.00019076,2]
[374457961,1753308338212,-297.0,0.00019076,2]
[374457962,1753308338236,-129.12028254,0.00019076,2]
[374457963,1753308358091,-170.87971746,0.00019076,2]
[374457964,1753308358112,-274.29473933,0.00019076,2]
[374457965,1753308437085,-155.79189862,0.00018645,2]
[374457966,1753308437107,-300.0,0.00019075,2]
[374457967,1753308437128,-25.70526067,0.00019076,2]
[374457968,1753308437150,-126.45331878,0.00019076,2]
[374457969,1753308448108,-430.94545372,0.00019076,2]
[374457970,1753308450085,-193.47695401,0.00019076,2]
[374457973,1753308570080,-490.0,0.00018174,2]
[374457975,1753308571835,-265.83937996,0.00018174,2]
[374457976,1753308574142,-164.16062004,0.00018174,2]
[374457978,1753308597952,-164.95781901,0.00018146,2]
[374458037,1753308632471,-1200.0,0.00018145,2]
[374458039,1753308632480,-214.0,0.00018145,2]
[374458041,1753308632490,-300.0,0.00018145,2]
[374458043,1753308632500,-2451.0725342,0.00018146,2]
[374458045,1753308632512,-7625.69383469,0.00018146,2]
[374458047,1753308632521,-1291.23329346,0.000189,2]
[374458049,1753308632531,-1069.0,0.00019076,2]
[374458051,1753308632540,-320.26401761,0.00019077,2]
[374458053,1753308632550,-1426.80885424,0.00019078,2]
[374458055,1753308632562,-2846.87103427,0.00019078,2]
[374458057,1753308632574,-6635.70480251,0.00019078,2]
[374458059,1753308632583,-151.0,0.00019166,2]
[374458061,1753308632593,-611.16,0.00019168,3]
[374458063,1753308632602,-305.58,0.00019168,3]
[374458065,1753308632612,-305.58,0.00019168,3]
[374458067,1753308632621,-500.0,0.00019173,2]
[374458069,1753308632631,-500.0,0.00019173,2]
[374458071,1753308632641,-503.14242823,0.00019173,2]
[374458073,1753308632650,-500.00932369,0.00019173,2]
[374458075,1753308632659,-500.0,0.00019173,2]
[374458077,1753308632672,-48823.83864236,0.00019173,2]
[374458079,1753308632682,-500.0,0.00019173,2]
[374458081,1753308632691,-195.18191197,0.00019173,2]
[374458083,1753308632701,-500.0,0.00019176,2]
[374458085,1753308632710,-500.0,0.00019176,2]
[374458087,1753308632722,-178.59315011,0.00019178,2]
[374458089,1753308632731,-460.0,0.00019178,2]
[374458091,1753308632741,-460.0,0.00019178,2]
[374458093,1753308632752,-162.31583375,0.00019178,2]
[374458095,1753308632762,-460.0,0.00019178,2]
[374458097,1753308632771,-460.0,0.00019178,2]
[374458099,1753308632782,-460.0,0.00019178,2]
[374458101,1753308632791,-460.0,0.00019178,2]
[374458103,1753308632801,-460.0,0.00019178,2]
[374458105,1753308632810,-463.38520427,0.00019178,2]
[374458107,1753308632820,-460.0,0.00019178,2]
[374458109,1753308632830,-460.0,0.00019178,2]
[374458111,1753308632839,-460.0,0.00019178,2]
[374458113,1753308632849,-460.0,0.00019178,2]
[374458115,1753308632858,-460.0,0.00019178,2]
[374458117,1753308632868,-460.0,0.00019178,2]
[374458118,1753308632878,-460.0,0.00019178,2]
[374458119,1753308632888,-460.0,0.00019178,2]
[374458120,1753308632898,-460.0,0.00019178,2]
[374458121,1753308632907,-460.0,0.00019178,2]
[374458122,1753308632918,-460.0,0.00019178,2]
[374458123,1753308632928,-460.0,0.00019178,2]
[374458124,1753308632938,-460.0,0.00019178,2]
[374458125,1753308632948,-460.0,0.00019178,2]
[374458126,1753308632958,-460.0,0.00019178,2]
[374458127,1753308632968,-460.0,0.00019178,2]
[374458128,1753308632978,-460.0,0.00019178,2]
[374458129,1753308632988,-495.09873608,0.00019178,2]
[374458130,1753308632997,-460.0,0.00019178,2]
[374458131,1753308633007,-460.0,0.00019178,2]
[374458132,1753308633017,-460.0,0.00019178,2]
[374458133,1753308633026,-460.0,0.00019178,2]
[374458134,1753308633035,-1000.0,0.00019178,2]
[374458135,1753308633046,-460.0,0.00019178,2]
[374458136,1753308633055,-460.0,0.00019178,2]
[374458137,1753308633065,-460.0,0.00019178,2]
[374458138,1753308633075,-460.0,0.00019178,2]
[374458139,1753308633085,-460.0,0.00019178,2]
[374458140,1753308633095,-466.40297629,0.00019178,2]
[374458141,1753308633104,-460.0,0.00019178,2]
[374458142,1753308633113,-460.0,0.00019178,2]
[374458143,1753308633123,-460.0,0.00019178,2]
[374458144,1753308633132,-460.0,0.00019178,2]
[374458145,1753308633142,-460.0,0.00019178,2]
[374458146,1753308633152,-460.0,0.00019178,2]
[374458147,1753308633162,-460.0,0.00019178,2]
[374458148,1753308633172,-460.0,0.00019178,2]
[374458149,1753308633182,-460.0,0.00019178,2]
[374458150,1753308633191,-460.0,0.00019178,2]
[374458151,1753308633201,-460.0,0.00019178,2]
[374458152,1753308633211,-460.0,0.00019178,2]
[374458153,1753308633220,-460.0,0.00019178,2]
[374458154,1753308633231,-460.0,0.00019178,2]
[374458155,1753308633240,-460.0,0.00019178,2]
[374458156,1753308633250,-460.0,0.00019178,2]
[374458157,1753308633260,-460.0,0.00019178,2]
[374458158,1753308633270,-460.0,0.00019178,2]
[374458159,1753308633280,-460.0,0.00019178,2]
[374458160,1753308633293,-460.0,0.00019178,2]
[374458161,1753308633303,-461.56965351,0.00019178,2]
[374458162,1753308633314,-460.0,0.00019178,2]
[374458163,1753308633323,-1572.5,0.00019178,2]
[374458164,1753308633333,-460.0,0.00019178,2]
[374458165,1753308633342,-460.0,0.00019178,2]
[374458166,1753308633352,-460.0,0.00019178,2]
[374458167,1753308633362,-500.0,0.00019178,2]
[374458168,1753308633372,-500.0,0.00019178,2]
[374458169,1753308633382,-500.0,0.00019178,2]
[374458170,1753308633392,-500.0,0.00019178,2]
[374458171,1753308633402,-580.0,0.00019178,2]
[374458172,1753308633412,-463.64171369,0.00019178,2]
[374458173,1753308633423,-460.0,0.00019178,2]
[374458174,1753308633434,-460.0,0.00019178,2]
[374458175,1753308633443,-460.0,0.00019178,2]
[374458176,1753308633453,-460.0,0.00019178,2]
[374458177,1753308633463,-460.0,0.00019178,2]
[374458178,1753308633472,-460.0,0.00019178,2]
[374458179,1753308633482,-460.0,0.00019178,2]
[374458180,1753308633492,-460.0,0.00019178,2]
[374458181,1753308633503,-460.0,0.00019178,2]
[374458182,1753308633513,-460.0,0.00019178,2]
[374458183,1753308633523,-460.0,0.00019178,2]
[374458184,1753308633534,-460.0,0.00019178,2]
[374458185,1753308633544,-460.0,0.00019178,2]
[374458186,1753308633553,-460.0,0.00019178,2]
[374458187,1753308633563,-460.0,0.00019178,2]
[374458188,1753308633573,-460.0,0.00019178,2]
[374458189,1753308633582,-460.0,0.00019178,2]
[374458190,1753308633592,-460.0,0.00019178,2]
[374458191,1753308633602,-460.0,0.00019178,2]
[374458192,1753308633611,-460.0,0.00019178,2]
[374458193,1753308633621,-460.0,0.00019178,2]
[374458194,1753308633631,-460.0,0.00019178,2]
[374458195,1753308633640,-460.0,0.00019178,2]
[374458196,1753308633650,-460.0,0.00019178,2]
[374458197,1753308633659,-460.0,0.00019178,2]
[374458198,1753308633671,-460.0,0.00019178,2]
[374458199,1753308633681,-461.88720669,0.00019178,2]
[374458200,1753308633690,-460.0,0.00019178,2]
[374458201,1753308633701,-460.0,0.00019178,2]
[374458202,1753308633711,-460.54991565,0.00019178,2]
[374458203,1753308633721,-460.0,0.00019178,2]
[374458204,1753308633730,-94.40256212,0.00019178,2]
[374458205,1753308633747,-455.32762042,0.00019178,2]
[374458206,1753308633757,-260.48410387,0.00019178,2]
[374458207,1753308633767,-151.0,0.00019178,2]
[374458208,1753308633777,-657.0,0.00019178,2]
[374458209,1753308633786,-460.0,0.00019178,2]
[374458210,1753308633795,-460.0,0.00019178,2]
[374458211,1753308633806,-460.0,0.00019178,2]
[374458212,1753308633815,-460.0,0.00019178,2]
[374458213,1753308633825,-460.0,0.00019178,2]
[374458214,1753308633834,-460.0,0.00019178,2]
[374458215,1753308633844,-460.0,0.00019178,2]
[374458216,1753308633853,-460.0,0.00019178,2]
[374458217,1753308633863,-460.0,0.00019178,2]
[374458218,1753308633872,-460.0,0.00019178,2]
[374458219,1753308633881,-460.0,0.00019178,2]
[374458220,1753308633890,-460.0,0.00019178,2]
[374458221,1753308633899,-460.0,0.00019178,2]
[374458222,1753308633909,-459.85282798,0.00019178,2]
[374458223,1753308633919,-204.82885784,0.00019178,2]
[374458224,1753308633929,-460.0,0.00019178,2]
[374458225,1753308633938,-460.0,0.00019178,2]
[374458226,1753308633947,-460.0,0.00019178,2]
[374458227,1753308633957,-460.0,0.00019178,2]
[374458228,1753308633967,-460.0,0.00019178,2]
[374458229,1753308633976,-460.0,0.00019178,2]
[374458230,1753308633986,-460.0,0.00019178,2]
[374458231,1753308633996,-460.0,0.00019178,2]
[374458232,1753308634005,-460.0,0.00019178,2]
[374458233,1753308634016,-460.0,0.00019178,2]
[374458234,1753308634026,-460.0,0.00019178,2]
[374458235,1753308634035,-460.0,0.00019178,2]
[374458236,1753308634044,-460.0,0.00019178,2]
[374458237,1753308634054,-460.0,0.00019178,2]
[374458238,1753308634064,-460.0,0.00019178,2]
[374458239,1753308634074,-460.0,0.00019178,2]
[374458240,1753308634084,-457.15275931,0.00019178,2]
[374458241,1753308634093,-474.12128721,0.00019178,2]
[374458242,1753308634103,-460.0,0.00019178,2]
[374458243,1753308634112,-460.0,0.00019178,2]
[374458244,1753308634122,-460.0,0.00019178,2]
[374458245,1753308634131,-460.0,0.00019178,2]
[374458246,1753308634140,-460.0,0.00019178,2]
[374458247,1753308634150,-460.0,0.00019178,2]
[374458248,1753308634160,-460.0,0.00019178,2]
[374458249,1753308634171,-460.0,0.00019178,2]
[374458250,1753308634180,-460.0,0.00019178,2]
[374458251,1753308634192,-460.0,0.00019178,2]
[374458252,1753308634203,-460.0,0.00019178,2]
[374458253,1753308634212,-460.0,0.00019178,2]
[374458254,1753308634222,-460.0,0.00019178,2]
[374458255,1753308634231,-460.0,0.00019178,2]
[374458256,1753308634241,-460.98555924,0.00019178,2]
[374458257,1753308634251,-460.0,0.00019178,2]
[374458258,1753308634261,-178.81779799,0.00019178,2]
[374458259,1753308634271,-334.67780035,0.00019178,2]
[374458260,1753308634280,-460.0,0.00019178,2]
[374458261,1753308634290,-460.0,0.00019178,2]
[374458262,1753308634300,-460.0,0.00019178,2]
[374458263,1753308634310,-465.14027417,0.00019178,2]
[374458264,1753308634320,-460.0,0.00019178,2]
[374458265,1753308634329,-2341.53,0.00019178,2]
[374458266,1753308634339,-366.07535684,0.00019178,2]
[374458267,1753308634351,-460.0,0.00019178,2]
[374458268,1753308634362,-460.0,0.00019178,2]
[374458269,1753308634371,-460.0,0.00019178,2]
[374458270,1753308634381,-544.63210703,0.00019178,2]
[374458271,1753308634391,-460.0,0.00019178,2]
[374458272,1753308634401,-460.0,0.00019178,2]
[374458273,1753308634411,-460.0,0.00019178,2]
[374458274,1753308634422,-460.0,0.00019178,2]
[374458275,1753308634431,-151.0,0.00019178,2]
[374458276,1753308634441,-460.0,0.00019178,2]
[374458277,1753308634451,-151.0,0.00019178,2]
[374458278,1753308634460,-460.0,0.00019178,2]
[374458279,1753308634470,-151.0,0.00019178,2]
[374458280,1753308634480,-295.87155738,0.00019178,2]
[374458281,1753308634489,-500.0,0.00019178,2]
[374458282,1753308634499,-460.0,0.00019178,2]
[374458283,1753308634508,-500.0,0.00019178,2]
[374458284,1753308634518,-500.0,0.00019178,2]
[374458285,1753308634527,-500.0,0.00019178,2]
[374458286,1753308634536,-500.0,0.00019178,2]
[374458287,1753308634547,-255.55352173,0.00019178,2]
[374458288,1753308634556,-151.0,0.00019178,2]
[374458289,1753308634566,-460.0,0.00019178,2]
[374458290,1753308634576,-151.0,0.00019178,2]
[374458291,1753308634585,-460.0,0.00019178,2]
[374458292,1753308634594,-152.52494706,0.00019178,2]
[374458293,1753308634604,-557.4939387,0.00019178,2]
[374458294,1753308634613,-151.0,0.00019178,2]
[374458295,1753308634622,-460.0,0.00019178,2]
[374458296,1753308634632,-151.0,0.00019178,2]
[374458297,1753308634642,-460.0,0.00019178,2]
[374458298,1753308634652,-460.0,0.00019178,2]
[374458299,1753308634662,-460.0,0.00019178,2]
[374458300,1753308634678,-460.0,0.00019178,2]
[374458301,1753308634687,-460.0,0.00019178,2]
[374458302,1753308634697,-460.0,0.00019178,2]
[374458303,1753308634707,-460.0,0.00019178,2]
[374458304,1753308634718,-460.0,0.00019178,2]
[374458305,1753308634728,-460.0,0.00019178,2]
[374458306,1753308634737,-460.0,0.00019178,2]
[374458307,1753308634749,-460.0,0.00019178,2]
[374458308,1753308634759,-460.0,0.00019178,2]
[374458309,1753308634768,-460.0,0.00019178,2]
[374458310,1753308634778,-460.0,0.00019178,2]
[374458311,1753308634787,-460.0,0.00019178,2]
[374458312,1753308634797,-426.0,0.00019178,2]
[374458313,1753308634806,-460.0,0.00019178,2]
[374458314,1753308634816,-151.0,0.00019178,2]
[374458315,1753308634826,-460.0,0.00019178,2]
[374458316,1753308634835,-151.0,0.00019178,2]
[374458317,1753308634845,-199.06013017,0.00019178,2]
[374458318,1753308634854,-151.0,0.00019178,2]
[374458319,1753308634864,-151.0,0.00019178,2]
[374458320,1753308634874,-500.0,0.00019178,2]
[374458321,1753308634883,-500.0,0.00019178,2]
[374458322,1753308634893,-460.0,0.00019178,2]
[374458323,1753308634902,-460.0,0.00019178,2]
[374458324,1753308634912,-460.0,0.00019178,2]
[374458325,1753308634924,-460.0,0.00019178,2]
[374458326,1753308634933,-460.0,0.00019178,2]
[374458327,1753308634943,-948.27,0.00019178,2]
[374458328,1753308634952,-920.38,0.00019178,2]
[374458329,1753308634962,-460.0,0.00019178,2]
[374458330,1753308634972,-460.0,0.00019178,2]
[374458331,1753308634982,-460.0,0.00019178,2]
[374458332,1753308634991,-169.92257632,0.00019178,2]
[374458333,1753308635001,-460.0,0.00019178,2]
[374458334,1753308635010,-151.63033314,0.00019178,2]
[374458335,1753308635019,-151.0,0.00019178,2]
[374458336,1753308635030,-151.0,0.00019178,2]
[374458337,1753308635040,-460.0,0.00019178,2]
[374458338,1753308635050,-460.0,0.00019178,2]
[374458339,1753308635059,-460.0,0.00019178,2]
[374458340,1753308635069,-460.0,0.00019178,2]
[374458341,1753308635079,-460.0,0.00019178,2]
[374458342,1753308635088,-460.0,0.00019178,2]
[374458343,1753308635097,-460.0,0.00019178,2]
[374458344,1753308635107,-460.0,0.00019178,2]
[374458345,1753308635116,-460.0,0.00019178,2]
[374458346,1753308635126,-460.0,0.00019178,2]
[374458347,1753308635135,-477.17712456,0.00019178,2]
[374458348,1753308635145,-460.0,0.00019178,2]
[374458349,1753308635154,-460.0,0.00019178,2]
[374458350,1753308635164,-460.0,0.00019178,2]
[374458351,1753308635178,-460.0,0.00019178,2]
[374458352,1753308635187,-536.88280862,0.00019178,2]
[374458353,1753308635197,-460.0,0.00019178,2]
[374458354,1753308635207,-460.0,0.00019178,2]
[374458355,1753308635216,-460.0,0.00019178,2]
[374458356,1753308635226,-460.0,0.00019178,2]
[374458357,1753308635235,-460.0,0.00019178,2]
[374458358,1753308635245,-460.0,0.00019178,2]
[374458359,1753308635255,-460.0,0.00019178,2]
[374458360,1753308635265,-460.0,0.00019178,2]
[374458361,1753308635275,-1018.41,0.00019178,2]
[374458362,1753308635284,-245.06678555,0.00019178,2]
[374458363,1753308635293,-460.0,0.00019178,2]
[374458364,1753308635428,-460.0,0.00019178,2]
[374458365,1753308635438,-551.67626121,0.00019178,2]
[374458366,1753308635448,-460.0,0.00019178,2]
[374458367,1753308635457,-460.0,0.00019178,2]
[374458368,1753308635467,-1015.25,0.00019178,2]
[374458369,1753308635476,-460.0,0.00019178,2]
[374458370,1753308635486,-153.27205823,0.00019178,2]
[374458371,1753308635495,-460.0,0.00019178,2]
[374458372,1753308635506,-454.3691709,0.00019178,2]
[374458373,1753308635516,-460.0,0.00019178,2]
[374458374,1753308635525,-460.0,0.00019178,2]
[374458375,1753308635535,-460.0,0.00019178,2]
[374458376,1753308635544,-460.0,0.00019178,2]
[374458377,1753308635554,-569.68742337,0.00019178,2]
[374458378,1753308635563,-460.0,0.00019178,2]
[374458379,1753308635573,-460.0,0.00019178,2]
[374458380,1753308635582,-460.0,0.00019178,2]
[374458381,1753308635591,-460.0,0.00019178,2]
[374458382,1753308635601,-460.0,0.00019178,2]
[374458383,1753308635610,-460.0,0.00019178,2]
[374458384,1753308635619,-460.0,0.00019178,2]
[374458385,1753308635629,-217.7196317,0.00019178,2]
[374458386,1753308635638,-460.0,0.00019178,2]
[374458387,1753308635651,-589.14,0.00019178,2]
[374458388,1753308635660,-460.0,0.00019178,2]
[374458389,1753308635673,-460.0,0.00019178,2]
[374458390,1753308635683,-460.0,0.00019178,2]
[374458391,1753308635692,-460.0,0.00019178,2]
[374458392,1753308635701,-460.0,0.00019178,2]
[374458393,1753308635712,-460.0,0.00019178,2]
[374458394,1753308635721,-460.0,0.00019178,2]
[374458395,1753308635731,-463.55938006,0.00019178,2]
[374458396,1753308635741,-460.0,0.00019178,2]
[374458397,1753308635751,-460.0,0.00019178,2]
[374458398,1753308635760,-460.0,0.00019178,2]
[374458399,1753308635776,-460.0,0.00019178,2]
[374458400,1753308635785,-460.0,0.00019178,2]
[374458401,1753308635795,-460.0,0.00019178,2]
[374458402,1753308635805,-460.0,0.00019178,2]
[374458403,1753308635814,-460.0,0.00019178,2]
[374458404,1753308635823,-460.61825304,0.00019178,2]
[374458405,1753308635833,-549.98,0.00019178,2]
[374458406,1753308635843,-460.0,0.00019178,2]
[374458407,1753308635852,-240.02098606,0.00019178,2]
[374458408,1753308635863,-460.0,0.00019178,2]
[374458409,1753308635873,-460.0,0.00019178,2]
[374458410,1753308635883,-460.0,0.00019178,2]
[374458411,1753308635892,-460.0,0.00019178,2]
[374458412,1753308635902,-460.0,0.00019178,2]
[374458413,1753308635911,-460.0,0.00019178,2]
[374458414,1753308635921,-460.0,0.00019178,2]
[374458415,1753308635931,-460.0,0.00019178,2]
[374458416,1753308635940,-789.16,0.00019178,2]
[374458417,1753308635949,-460.0,0.00019178,2]
[374458418,1753308635958,-460.0,0.00019178,2]
[374458419,1753308635967,-460.0,0.00019178,2]
[374458420,1753308635977,-460.0,0.00019178,2]
[374458421,1753308635987,-460.0,0.00019178,2]
[374458422,1753308635997,-460.0,0.00019178,2]
[374458423,1753308636007,-460.0,0.00019178,2]
[374458424,1753308636016,-460.0,0.00019178,2]
[374458425,1753308636026,-460.0,0.00019178,2]
[374458426,1753308636035,-460.0,0.00019178,2]
[374458427,1753308636045,-460.0,0.00019178,2]
[374458428,1753308636054,-460.0,0.00019178,2]
[374458429,1753308636064,-460.0,0.00019178,2]
[374458430,1753308636074,-462.34844235,0.00019178,2]
[374458431,1753308636085,-460.0,0.00019178,2]
[374458432,1753308636094,-460.0,0.00019178,2]
[374458433,1753308636104,-460.0,0.00019178,2]
[374458434,1753308636113,-460.0,0.00019178,2]
[374458435,1753308636121,-461.41079045,0.00019178,2]
[374458436,1753308636131,-460.0,0.00019178,2]
[374458437,1753308636140,-460.0,0.00019178,2]
[374458438,1753308636149,-460.0,0.00019178,2]
[374458439,1753308636159,-460.0,0.00019178,2]
[374458440,1753308636168,-460.0,0.00019178,2]
[374458441,1753308636177,-460.0,0.00019178,2]
[374458442,1753308636187,-512.15623711,0.00019178,2]
[374458443,1753308636196,-460.0,0.00019178,2]
[374458444,1753308636206,-460.0,0.00019178,2]
[374458445,1753308636215,-460.0,0.00019178,2]
[374458446,1753308636226,-460.0,0.00019178,2]
[374458447,1753308636235,-460.0,0.00019178,2]
[374458448,1753308636245,-460.0,0.00019178,2]
[374458449,1753308636254,-460.0,0.00019178,2]
[374458450,1753308636264,-460.0,0.00019178,2]
[374458451,1753308636275,-460.0,0.00019178,2]
[374458452,1753308636284,-547.25,0.00019178,2]
[374458453,1753308636294,-460.0,0.00019178,2]
[374458454,1753308636306,-460.0,0.00019178,2]
[374458455,1753308636316,-460.0,0.00019178,2]
[374458456,1753308636326,-460.0,0.00019178,2]
[374458457,1753308636335,-460.0,0.00019178,2]
[374458458,1753308636344,-460.0,0.00019178,2]
[374458459,1753308636354,-460.0,0.00019178,2]
[374458460,1753308636363,-460.0,0.00019178,2]
[374458461,1753308636372,-460.0,0.00019178,2]
[374458462,1753308636382,-460.0,0.00019178,2]
[374458463,1753308636391,-463.00321986,0.00019178,2]
[374458464,1753308636400,-460.0,0.00019178,2]
[374458466,1753308636409,-460.0,0.00019178,2]
[374458467,1753308636419,-531.36442831,0.00019178,2]
[374458468,1753308636429,-460.0,0.00019178,2]
[374458469,1753308636438,-460.0,0.00019178,2]
[374458470,1753308636447,-460.0,0.00019178,2]
[374458471,1753308636456,-460.0,0.00019178,2]
[374458472,1753308636465,-500.0,0.00019178,2]
[374458473,1753308636476,-193.446778,0.00019178,2]
[374458474,1753308636486,-1127.73240532,0.00019352,2]
[374458475,1753308636496,-500.0,0.00019451,2]
[374458476,1753308636505,-294.18116899,0.00019452,2]
[374458477,1753308636517,-657.0,0.00019452,2]
[374458478,1753308636526,-151.0,0.00019452,2]
[374458479,1753308636537,-151.0,0.00019452,2]
[374458480,1753308636547,-151.0,0.00019452,2]
[374458481,1753308636557,-151.0,0.00019452,2]
[374458482,1753308636567,-151.0,0.00019452,2]
[374458483,1753308636576,-198.48400764,0.00019452,2]
[374458484,1753308636586,-426.0,0.00019452,2]
[374458485,1753308636597,-151.0,0.00019452,2]
[374458486,1753308636607,-169.6772102,0.00019452,2]
[374458487,1753308636617,-151.0,0.00019452,2]
[374458488,1753308636629,-151.0,0.00019452,2]